Cogmind - Beta 14 @@@ ROGUE MODE // 2024.10.10 @ 14:41:38 Player: Some Pennies Result: Destroyed by H-66 Slayer with Heavy Assault Rifle Performance ------------- Evolutions (4) 2000 Regions Visited (14) 2800 Robots Destroyed (244) 1220 Value Destroyed (10876) 10876 Prototype IDs (48) 960 Alien Tech Used (0) 0 Bonus (8646) 8646 TOTAL SCORE: 26502 Bonus ------- Triggered High Security 500 High Alert Combat Kills 2746 Follower Combat Kills 2058 Network Hubs Disabled 800 Met Imprinter 300 Destroyed Z-Imprinter 1000 Triggered Deep Caves Wall 500 Exposed GOLEM Chamber 500 Met Zhirov 300 Built Enhanced Grunts 300 A7 Reached Mainframe 300 Met R17 at Cetus 500 Friendly Fire -1158 Cogmind --------- Core Integrity 0/850 Matter 150/300 Energy 978/1100 System Corruption 48% Temperature Cool (0) Movement Treading (240) Ox1 Location -6/Hub_04(d) Parts ------- > --- POWER (2) -------- (None) > --- PROPULSION (4) --- Centrium Heavy Treads > --- UTILITY (7) ------ Cargo Storage Unit Assembled Biocell Array > --- WEAPON (2) ------- (None) > --- INVENTORY (30) --- Meta Core Experimental Heat Sink Zionite Biocell (600) Zionite Biocell (600) Zionite Weapon Casing Zionite Weapon Casing Graphene Brace Experimental EM Disruption Field Experimental EM Disruption Field Experimental EM Disruption Field Advanced Hacking Suite Mobile Assembly Unit GOLEM Unit GOLEM Unit EMDS Advanced KE Penetrator Peak State ------------ > --- POWER ------------ Assembled Flux Generator > --- PROPULSION ------- Centrium Heavy Treads Assembled Alloy Leg Assembled Alloy Leg > --- UTILITY ---------- Cargo Storage Unit Assembled Biocell Array Centrium Medium Armor Plating Centrium Medium Armor Plating GOLEM Unit > --- WEAPON ----------- Assembled Focal Cannon Assembled Focal Cannon > --- INVENTORY -------- Meta Core Centrium Heavy Treads Experimental Heat Sink Zionite Biocell Zionite Biocell Zionite Biocell Experimental Phase Shifter Zionite Weapon Casing Zionite Weapon Casing Centrium Medium Armor Plating Graphene Brace Experimental EM Disruption Field Experimental EM Disruption Field Experimental EM Disruption Field Advanced Hacking Suite Mobile Assembly Unit GOLEM Unit GOLEM Unit EMDS EMDS Advanced KE Penetrator Long-range Missile Launcher [Rating: 138] Favorites ----------- Power Assembled Flux Generator Engine Improved Deuterium Engine Power Core Enhanced Nuclear Core Reactor Assembled Flux Generator Propulsion Assembled Alloy Leg Treads Medium Treads Leg Assembled Alloy Leg Wheel Armored Huge Wheel Hover Unit Zionite Glidesys I Flight Unit Flight Unit Utility Cargo Storage Unit Device Improved Shield Generator Storage Cargo Storage Unit Processor Core Analyzer Hackware Hacking Suite Protection Centrium Medium Armor Plating Weapon Assembled Focal Cannon Energy Gun Advanced Beam Rifle Energy Cannon Assembled Focal Cannon Ballistic Gun Light Assault Rifle Ballistic Cannon Slug Cannon Launcher Heavy Rocket Launcher Special Weapon Multitool Slashing Weapon Ripper Piercing Weapon Makeshift Spear Build | -11 -10 -10 -8 -7 -7 -7 -7 -7 -6 -6 -6 -6 -6 -6 ------- Run | Yrd Mat Sub Mat Fac Low Low Zio Dee Pro Fac Ext Cet Arc Hub Slots Evolved 8 | . . . 4 2 . . . . . 2 . . . . Power 1 | . . . . 1 . . . . . . . . . . Propulsion 2 | . . . 2 . . . . . . . . . . . Utility 5 | . . . 2 1 . . . . . 2 . . . . Weapon . | . . . . . . . . . . . . . . . Parts Attached 251 | 10 7 19 53 32 5 5 13 53 3 1 11 5 3 31 Power 23 | 2 2 2 4 8 . 2 1 2 . . . . . . Engine 15 | 2 2 1 4 4 . 1 . 1 . . . . . . Core 7 | . . 1 . 4 . 1 1 . . . . . . . Reactor 1 | . . . . . . . . 1 . . . . . . Propulsion 56 | 2 1 4 18 3 1 1 3 11 . . 8 1 1 2 Treads 38 | 2 . 1 10 3 . 1 3 6 . . 8 1 1 2 Leg 2 | . . . . . . . . 2 . . . . . . Wheel 12 | . . 3 7 . 1 . . 1 . . . . . . Hover 2 | . . . . . . . . 2 . . . . . . Flight 2 | . 1 . 1 . . . . . . . . . . . Utility 96 | 4 2 4 15 5 2 2 5 29 1 1 2 2 2 20 Device 42 | 3 1 4 7 2 1 . . 13 . 1 . . 1 9 Storage 6 | 1 1 . 1 . . . . 2 . . . . . 1 Processor 4 | . . . . 1 . . 3 . . . . . . . Hackware 5 | . . . . 2 . . . . . . . . . 3 Protection 39 | . . . 7 . 1 2 2 14 1 . 2 2 1 7 Artifact . | . . . . . . . . . . . . . . . Weapon 76 | 2 2 9 16 16 2 . 4 11 2 . 1 2 . 9 Energy Gun 18 | 1 1 2 8 2 . . . 4 . . . . . . Energy Cannon 26 | . . 3 3 10 1 . 2 4 . . 1 . . 2 Ballistic Gun 8 | 1 . . 1 1 . . . . . . . 2 . 3 Ballistic Cannon 5 | . . 2 3 . . . . . . . . . . . Launcher 12 | . . . 1 1 1 . . 3 2 . . . . 4 Special Weapon 3 | . 1 . . 1 . . 1 . . . . . . . Impact Weapon . | . . . . . . . . . . . . . . . Slashing Weapon 2 | . . . . 1 . . 1 . . . . . . . Piercing Weapon 2 | . . 2 . . . . . . . . . . . . Special Melee Weapon . | . . . . . . . . . . . . . . . Unidentified Prototypes 30 | . . . 6 3 . . 3 11 . . 1 3 . 3 Corrupted Parts 3 | . . . . . . . 2 . . . . . 1 . System Corruption 17 | . . . . . . . 16 . . . . . 1 . Parts Lost 33 | . 2 3 3 2 . . . 3 1 . . 1 . 18 Power 5 | . 1 1 . 1 . . . . . . . . . 2 Propulsion 7 | . 1 1 1 . . . . . . . . . . 4 Utility 15 | . . 1 2 . . . . 3 1 . . 1 . 7 Weapon 6 | . . . . 1 . . . . . . . . . 5 Highest Loss Streak 14 | . 1 2 1 2 . . . 1 1 . . 1 . 14 To Critical Strikes 1 | . . . . . . . . . . . . 1 . . Average Slot Usage (%) 80 | . 99 96 81 79 84 84 83 82 80 80 79 73 72 71 Engine 2 | . 13 6 8 6 7 11 7 . . . . . . . Core 2 | . . 4 . 6 7 3 6 3 . . . . . . Reactor 3 | . . . . . . . . 6 7 6 6 6 6 5 Treads 10 | . 21 14 16 9 15 15 15 12 7 6 12 7 6 5 Leg 8 | . . . . . . . . 10 23 20 13 13 12 12 Wheel 3 | . . 12 12 9 7 7 7 3 . . . . . . Device 10 | . 16 13 10 9 15 15 15 13 7 13 13 6 6 9 Storage 10 | . 11 14 9 7 7 7 7 8 15 13 13 13 12 12 Protection 7 | . . . 7 . 6 7 6 7 7 6 6 12 12 7 Energy Gun 1 | . 12 5 9 . . . . 1 . . . . . . Energy Cannon 12 | . . 11 7 13 14 15 14 12 11 13 12 9 13 12 Peak Build Rating 138 | 9 9 18 47 59 61 62 64 103 100 114 114 131 131 138 Average Rating 85 | 6 8 14 33 52 60 61 61 79 94 112 109 125 130 129 On Entrance 66 | . 9 8 15 42 59 61 62 62 100 89 114 112 131 131 Naked Turns . | . . . . . . . . . . . . . . . Heaviest Build 239 | 8 11 26 176 178 185 191 191 217 217 223 224 239 239 239 Greatest Support 84 | 40 40 20 80 56 28 28 28 84 60 60 60 60 60 80 Greatest Overweight (x) 79 | . . 1 5 6 6 6 6 6 3 3 3 3 79 7 Average Overweight (x) 4 | . . . 3 4 6 6 6 3 3 3 3 3 51 2 Largest Inventory Capacity 30 | 8 8 8 30 30 30 30 30 30 30 30 30 30 30 30 Average Capacity 26 | 5 7 8 29 30 30 30 30 23 30 30 30 30 30 30 Most Carried 30 | 5 8 8 30 30 30 30 30 30 30 30 30 30 30 30 Average Carried 26 | 3 6 7 27 29 29 29 29 22 29 27 29 29 29 29 Final Capacity 30 | 5 8 8 30 30 30 30 30 30 30 30 30 30 30 30 Final Carried 30 | 5 8 8 30 30 30 30 30 30 29 30 30 30 30 22 Class Distribution -------------------- 47% | Hauler-Mutant 36% | Hauler-Golem 6% | Mutant 5% | Scavenger-Mutant Dominant Class ---------------- Mutant | -10/Materials Mutant | -10/Subcaves Hauler-Mutant | -8/Materials Hauler-Mutant | -7/Factory Hauler-Mutant | -7/Lower Caves Hauler-Mutant | -7/Lower Caves Hauler-Mutant | -7/Zion Hauler-Mutant | -7/Deep Caves Hauler-Mutant | -6/Proximity Caves Hauler-Golem | -6/Factory Hauler-Golem | -6/Extension Hauler-Golem | -6/Cetus Hauler-Golem | -6/Archives Hauler-Golem | -6/Hub_04(d) Resources | -11 -10 -10 -8 -7 -7 -7 -7 -7 -6 -6 -6 -6 -6 -6 ----------- Run | Yrd Mat Sub Mat Fac Low Low Zio Dee Pro Fac Ext Cet Arc Hub Matter Collected 3991 | 307 59 363 892 339 158 73 76 823 137 10 100 79 30 545 Remotely . | . . . . . . . . . . . . . . . Salvage Created 12218 | 123 230 326 2091 1471 596 173 . 1776 700 231 1167 211 42 3081 Parts 600 | 10 13 18 114 84 22 2 . 57 22 30 65 9 3 151 Haulers Intercepted 10 | . . . 5 4 . . . . . 1 . . . . Recyclers Shooed 4 | . . . 2 . . 1 . . . . 1 . . . Parts Field Recycled . | . . . . . . . . . . . . . . . Retrieved Matter . | . . . . . . . . . . . . . . . Parts Self-Destructed 53 | . . 11 . . 19 5 . . 18 . . . . . Prevented 5 | . . . . . 2 3 . . . . . . . . Kills | -11 -10 -10 -8 -7 -7 -7 -7 -7 -6 -6 -6 -6 -6 -6 ------- Run | Yrd Mat Sub Mat Fac Low Low Zio Dee Pro Fac Ext Cet Arc Hub Combat Hostiles Destroyed 233 | . 7 9 35 25 13 . . 58 15 1 16 3 . 51 Melee 1 | . . 1 . . . . . . . . . . . . Guns 32 | . 7 2 17 3 . . . . . . . 1 . 2 Cannons 113 | . . 6 14 17 8 . . 14 10 1 15 2 . 26 AOE 71 | . . . 2 4 5 . . 37 5 . . . . 18 Classes Destroyed 27 | 2 2 2 9 2 1 . . 4 . . 1 . . 4 Worker 10 | . . . 5 2 . . . . . . . . . 3 Builder 13 | . . . 2 1 . . . . . 5 2 . . 3 Tunneler 5 | 3 . . 1 1 . . . . . . . . . . Hauler 10 | . . . 5 4 . . . . . 1 . . . . Recycler 7 | 1 . . 2 3 . . . . . . 1 . . . Mechanic 1 | . . . . . . . . . . . . . . 1 Operator 4 | . . . 1 1 . . . . . . 1 . . 1 Watcher 5 | . . . 3 . . . . . . . . . . 2 Swarmer 25 | . 3 . 7 9 2 . . . 1 . 3 . . . Saboteur 2 | . . . . . . . . . . . . . . 2 Grunt 77 | . 4 2 15 12 8 . . . 10 . 3 . . 23 Brawler 5 | . . . 1 . . . . . . . . . . 4 Duelist 3 | . . . . 1 . . . . 1 . . . . 1 Protector 4 | . . . . . . . . . . . . . . 4 Sentry 20 | . . . 7 . . . . . 1 . 8 . . 4 Specialist 2 | . . . 2 . . . . . . . . . . . Hunter 8 | . . . 3 1 . . . . 2 . . . . 2 Programmer 9 | . . . . 2 2 . . . . 1 . . . 4 Heavy 1 | . . . . . . . . . . . . . . 1 Behemoth 2 | . . . . . . . . . . . 2 . . . Cetus Guard 3 | . . . . . . . . . . . . 3 . . Lightning 6 | . . . . . . . . . . . . . . 6 Artisan 1 | . . 1 . . . . . . . . . . . . Subdweller 7 | . . 7 . . . . . . . . . . . . Z-Light 9 | . . . . . . . . 9 . . . . . . Packrat 1 | . . . . . . 1 . . . . . . . . Assembler 2 | . . . . . . . . 2 . . . . . . Assembled 42 | . . . . . . . . 42 . . . . . . Golem 7 | . . . . . . . . 7 . . . . . . Mutant 1 | . . . . . 1 . . . . . . . . . Best Kill Streak 38 | 2 3 3 14 7 6 . . 38 6 2 6 2 . 14 Combat Bots Only 36 | . 3 3 8 6 6 . . 36 6 1 5 2 . 14 Max Kills in Single Turn 20 | 1 1 1 2 3 3 1 . 20 2 1 2 1 1 6 Gunslinging . | . . . . . . . . . . . . . . . Exploded 19 | . . . 1 3 3 . . 19 2 . . . . 6 Melee 1 | . . 1 . . . . . . . . . . . . Uniques/NPCs Destroyed 2 | . . . . . . . . 1 . . . . 1 . Z-Imprinter (-7/Deep Caves) A7 (-6/Archives) Combat | -11 -10 -10 -8 -7 -7 -7 -7 -7 -6 -6 -6 -6 -6 -6 -------- Run | Yrd Mat Sub Mat Fac Low Low Zio Dee Pro Fac Ext Cet Arc Hub Hostile Shots Fired 1333 | . 55 21 196 141 39 9 . 124 64 4 120 8 . 552 Missed 384 | . 15 4 50 45 10 5 . 39 22 1 45 3 . 145 Damage Taken 15953 | . 371 469 2135 1397 378 62 . 1862 611 34 741 206 . 7687 Core 1685 | . . 122 218 225 23 13 . 188 40 . 66 25 . 765 Absorbed by Shields 2340 | . . . . 48 136 23 . 591 226 12 297 62 . 945 Reduced by Siege Mode 123 | . . . . . . . . . . . . . . 123 Redirected to Shielding 120 | . . . . . . . . 120 . . . . . . Ignored by Resistances 1321 | . . . 62 . . . . . . . . 39 . 1220 Regen/Repaired (Parts) 84 | . . . 32 52 . . . . . . . . . . Core Remaining (%) 60 | 100 . 51 60 . . . . . 30 . . . . . Volleys Fired 772 | 7 36 41 142 79 28 15 4 109 35 35 44 9 19 169 Largest 2 | 2 2 2 2 2 2 2 2 2 2 2 2 2 2 2 Hottest 160 | 60 100 128 160 155 60 60 90 119 50 50 50 60 50 70 Shots Fired 1388 | 14 65 71 272 158 51 30 5 191 53 70 88 18 37 265 Gun 342 | 14 58 18 173 20 . . . 33 . . . 6 . 20 Cannon 982 | . . 53 97 136 48 30 5 141 45 70 88 12 37 220 Launcher 57 | . . . 2 2 3 . . 17 8 . . . . 25 Special 7 | . 7 . . . . . . . . . . . . . Kinetic 132 | 7 29 38 22 10 . . . . . . . 6 . 20 Thermal 1139 | 7 36 33 241 145 48 30 5 127 45 70 88 12 37 215 Explosive 38 | . . . 2 2 3 . . 17 8 . . . . 6 Electromagnetic 79 | . . . 7 1 . . . 47 . . . . . 24 Robot Hit Streak 36 | 3 8 8 10 15 15 5 . 29 7 11 18 6 11 36 Robot Miss Streak 10 | 3 4 5 5 10 3 1 . 7 2 3 4 2 2 3 Penetration Max 1 | . . . 1 . . . . . . . . 1 . 1 Secondary Targets 2 | . 1 . 1 . . . . . . . . . . . Max Gunslinging Chain 1 | . 1 . 1 . . . . . . . . . . . Shots Hit Robots 768 | 7 37 42 167 84 34 10 . 91 30 15 59 12 6 174 Core Hits 557 | 6 15 13 75 62 29 6 . 156 32 8 26 4 4 121 Critical Kills 4 | . . 1 2 1 . . . . . . . . . . Critical Parts Destroyed 7 | . . 2 2 . . . . . . . . 1 . 2 Critical Strikes 25 | . . 6 15 1 . . . . . . . 1 . 2 Burn 11 | . . . 11 . . . . . . . . . . . Meltdown 2 | . . . 1 1 . . . . . . . . . . Destroy 11 | . . 5 3 . . . . . . . . 1 . 2 Impale 1 | . . 1 . . . . . . . . . . . . Melee Attacks 21 | . . 20 . 1 . . . . . . . . . . Impact . | . . . . . . . . . . . . . . . Slashing 1 | . . . . 1 . . . . . . . . . . Piercing 20 | . . 20 . . . . . . . . . . . . Sneak Attacks 1 | . . 1 . . . . . . . . . . . . Combat Hostiles . | . . . . . . . . . . . . . . . Follow-up Attacks . | . . . . . . . . . . . . . . . Damage Inflicted 33546 | 62 343 1074 4293 2334 1786 282 . 5718 2109 728 2963 498 182 11174 Guns 4195 | 62 339 170 2340 262 . . . 606 . . . 100 . 316 Cannons 19070 | . . 754 1590 1762 940 282 . 1897 1104 728 2902 398 182 6531 Explosions 9928 | . . . 272 310 846 . . 3215 1005 . . . . 4280 Melee 150 | . . 150 . . . . . . . . . . . . Ramming 203 | . 4 . 91 . . . . . . . 61 . . 47 Kinetic 1466 | 31 157 388 410 64 . . . . . . . 100 . 316 Thermal 20717 | 31 182 536 3398 1928 940 282 . 1579 1104 728 2902 398 182 6527 Explosive 7858 | . . . 242 310 846 . . 3215 1005 . . . . 2240 Electromagnetic 3152 | . . . 152 32 . . . 924 . . . . . 2044 Impact . | . . . . . . . . . . . . . . . Slashing . | . . . . . . . . . . . . . . . Piercing 150 | . . 150 . . . . . . . . . . . . Highest Corruption 48 | . . . 6 1 2 2 18 . . . . . 1 48 Average Corruption 5 | . . . 5 1 1 2 3 . . . . . 1 10 Corruption Purged 1 | . . . . . . . . . . . . . 1 . Corruption Blocked . | . . . . . . . . . . . . . . . Effects 176 | . . . 73 6 9 10 3 . . . . . . 75 Message Errors 36 | . . . 18 1 2 2 . . . . . . . 13 Matter Fused 48 | . . . 22 . 2 3 1 . . . . . . 20 Heat Flow Errors 17 | . . . 9 . . . . . . . . . . 8 Energy Discharges 21 | . . . 9 . 3 1 1 . . . . . . 7 Parts Rejected 1 | . . . . . . . . . . . . . . 1 Parts Fused 4 | . . . . 1 1 1 . . . . . . . 1 Data Loss (minor) 15 | . . . 5 1 . 2 1 . . . . . . 6 Data Loss (major) 7 | . . . 1 1 1 1 . . . . . . . 3 Misfires 11 | . . . 5 2 . . . . . . . . . 4 Alerts 3 | . . . 2 . . . . . . . . . . 1 Misdirections 1 | . . . . . . . . . . . . . . 1 Weapon Failures 12 | . . . 2 . . . . . . . . . . 10 Overload Shots 3 | . . . . . . . 3 . . . . . . . Overflow Damage 1049 | . . . 14 78 97 27 . 147 23 53 82 . . 528 Projectiles 720 | . . . 14 46 33 27 . 83 15 53 80 . . 369 Explosions 327 | . . . . 32 64 . . 64 8 . . . . 159 Melee 2 | . . . . . . . . . . . 2 . . . Knockbacks 13 | . 1 3 7 . . . . . . . 2 . . . Impact 3 | . 1 . . . . . . . . . 2 . . . Kinetic 10 | . . 3 7 . . . . . . . . . . . Secondary . | . . . . . . . . . . . . . . . Self-Inflicted Damage 729 | . . . 72 22 . . . 63 39 . . . . 533 Shots 20 | . . . 1 1 . . . 1 1 . . . . 16 Rammed 14 | . 2 . 10 . . . . . . . . . . 2 Targets Rammed 17 | . 2 . 10 . . . . . . . 2 . . 3 Kicked 3 | . . . . . . . . . . . 2 . . 1 Crushed . | . . . . . . . . . . . . . . . Highest Temperature 285 | 20 18 12 285 135 . . 2 155 17 . 18 7 . 262 Average Temperature 68 | 8 9 5 89 27 . . 1 64 8 . 6 4 . 86 Received Heat Transfer 3294 | . 72 111 918 340 149 9 . 426 176 . 205 18 . 870 Effects 5 | . . . 3 . . . . . . . . . . 2 Energy Bleed 1 | . . . . . . . . . . . . . . 1 Interference 4 | . . . 3 . . . . . . . . . . 1 Siege Activations 11 | . . . . . . . . . . . . . . 11 Total Turns 317 | . . . . . . . . . . . . . . 317 Longest Duration 76 | . . . . . . . . . . . . . . 76 Robots Corrupted 13 | . . . . . . . . 7 . . 1 . . 5 Combat Hostiles 12 | . . . . . . . . 7 . . . . . 5 Parts Fried 15 | . . . 1 . . . . . . . 2 . . 12 Impact Corruptions 1 | . . . . . . . . . . . 1 . . . Robots Melted 4 | . . . 2 1 . . . . . . 1 . . . Combat Hostiles 4 | . . . 2 1 . . . . . . 1 . . . Parts Melted 34 | . . . 16 5 1 . . 5 1 2 2 . . 2 Heat Transferred 19614 | 75 425 681 6280 2783 1221 370 . 1620 650 400 1525 225 125 3234 Parts Sabotaged 1 | . . . . . . . . . . . . . . 1 Parts Stolen . | . . . . . . . . . . . . . . . Parts Stripped . | . . . . . . . . . . . . . . . Power Chain Reactions 4 | . . . 1 . . . . . . . . . . 3 Alert | -11 -10 -10 -8 -7 -7 -7 -7 -7 -6 -6 -6 -6 -6 -6 ------- Run | Yrd Mat Sub Mat Fac Low Low Zio Dee Pro Fac Ext Cet Arc Hub Peak Influence 2024 | 20 238 . 761 664 . . . . . 133 370 465 131 2024 Initial 324 | . 13 . . 324 . . . . . 31 . 171 106 19 Average 295 | 14 142 . 341 434 . . . . . 44 142 279 9 828 Maximum Alert Level 5 | . 1 . 3 2 . . . . . . 1 2 . 5 Low Security (%) 56 | 100 66 . 26 1 . . . . . 100 69 9 100 23 Level 1 19 | . 33 . 33 51 . . . . . . 30 87 . 11 Level 2 9 | . . . 28 47 . . . . . . . 2 . 1 Level 3 6 | . . . 11 . . . . . . . . . . 23 Level 4 6 | . . . . . . . . . . . . . . 30 Level 5 . | . . . . . . . . . . . . . . . High Security 1 | . . . . . . . . . . . . . . 7 Max Security . | . . . . . . . . . . . . . . . Squads Dispatched 45 | . 2 . 6 5 . . . . . 5 3 . . 24 Investigation 4 | . 1 . 2 . . . . . . . 1 . . . Extermination 8 | . . . . 2 . . . . . 2 . . . 4 Reinforcement 19 | . 1 . 3 3 . . . . . 3 2 . . 7 Assault 14 | . . . 1 . . . . . . . . . . 13 Garrison . | . . . . . . . . . . . . . . . Intercept . | . . . . . . . . . . . . . . . Searches Triggered . | . . . . . . . . . . . . . . . Construction Impeded 4 | . . . 1 . . . . . . . . . . 3 Haulers Reinforced 2 | . . . . 1 . . . . . 1 . . . . Active Scanning Responses . | . . . . . . . . . . . . . . . Cargo Convoy Interrupts . | . . . . . . . . . . . . . . . Stealth | -11 -10 -10 -8 -7 -7 -7 -7 -7 -6 -6 -6 -6 -6 -6 --------- Run | Yrd Mat Sub Mat Fac Low Low Zio Dee Pro Fac Ext Cet Arc Hub Distress Signals 16 | . 1 . 4 1 . . . . . . 2 2 . 6 Communications Jammed . | . . . . . . . . . . . . . . . Distress Signals . | . . . . . . . . . . . . . . . Times Spotted 353 | . 10 10 54 34 15 2 . 56 15 2 32 10 . 113 Peak Tracking Total 37 | . 5 2 6 5 9 1 . 37 4 3 4 5 . 17 Tactical Retreats 15 | . 1 . 1 3 . . . 1 . 1 3 . . 5 Traps | -11 -10 -10 -8 -7 -7 -7 -7 -7 -6 -6 -6 -6 -6 -6 ------- Run | Yrd Mat Sub Mat Fac Low Low Zio Dee Pro Fac Ext Cet Arc Hub Traps Triggered 8 | . 1 1 1 . . . . . . . 5 . . . Indirectly . | . . . . . . . . . . . . . . . Trap Hack Attempts . | . . . . . . . . . . . . . . . Triggered . | . . . . . . . . . . . . . . . Disarmed . | . . . . . . . . . . . . . . . Reprogrammed . | . . . . . . . . . . . . . . . Reused . | . . . . . . . . . . . . . . . Traps Extracted . | . . . . . . . . . . . . . . . Installed . | . . . . . . . . . . . . . . . Triggered . | . . . . . . . . . . . . . . . Machines | -11 -10 -10 -8 -7 -7 -7 -7 -7 -6 -6 -6 -6 -6 -6 ---------- Run | Yrd Mat Sub Mat Fac Low Low Zio Dee Pro Fac Ext Cet Arc Hub Machines Disabled 64 | . . 1 6 4 3 . 3 4 . . 7 2 2 32 Max in Single Turn 7 | . . 1 1 1 2 . 1 1 . . 1 2 1 7 Garrison Access 3 | . . . 1 1 . . . . . . . . . 1 Network Hub 4 | . . . . . . . . . . . . . . 4 Energy Cycler 2 | . . . . . . . . . . . 2 . . . Machines Repaired . | . . . . . . . . . . . . . . . Machines Dismantled . | . . . . . . . . . . . . . . . Machines Sabotaged . | . . . . . . . . . . . . . . . Overloaded Fab Kills . | . . . . . . . . . . . . . . . Hacking | -11 -10 -10 -8 -7 -7 -7 -7 -7 -6 -6 -6 -6 -6 -6 --------- Run | Yrd Mat Sub Mat Fac Low Low Zio Dee Pro Fac Ext Cet Arc Hub Machines Accessed 41 | . 1 1 10 8 . 1 . . . . 9 . . 11 Terminals 34 | . 1 . 7 5 . 1 . . . . 9 . . 11 Fabricators . | . . . . . . . . . . . . . . . Repair Stations 2 | . . . 1 1 . . . . . . . . . . Recycling Units 2 | . . . 1 1 . . . . . . . . . . Scanalyzers 1 | . . . 1 . . . . . . . . . . . Garrison Access 1 | . . . . 1 . . . . . . . . . . Total Hacks 133 | . 2 1 44 25 . 2 . . . . 25 . . 34 Successful 65 | . 1 1 23 13 . 2 . . . . 9 . . 16 Failed 68 | . 1 . 21 12 . . . . . . 16 . . 18 Catastrophic 13 | . . . 3 3 . . . . . . 3 . . 4 Database Lockouts . | . . . . . . . . . . . . . . . Manual 84 | . 2 . 25 18 . . . . . . 16 1 . 22 Terminals 115 | . 2 . 34 18 . 2 . . . . 25 . . 34 Fabricators . | . . . . . . . . . . . . . . . Repair Stations 8 | . . . 6 2 . . . . . . . . . . Recycling Units 3 | . . . 1 2 . . . . . . . . . . Scanalyzers 3 | . . . 3 . . . . . . . . . . . Garrison Access 3 | . . . . 3 . . . . . . . . . . Terminal Hacks 34 | . . 1 11 2 . 2 . . . . 3 . . 15 Record 3 | . . . . . . 2 . . . . 1 . . . Part Schematic 2 | . . . . . . . . . . . 1 . . 1 Robot Analysis 4 | . . . 3 . . . . . . . . . . 1 Prototype ID Bank 1 | . . . 1 . . . . . . . . . . . Open Door 1 | . . . . . . . . . . . 1 . . . Level Access Points 1 | . . . . . . . . . . . . . . 1 Branch Access Points 2 | . . . 1 1 . . . . . . . . . . Emergency Access Points 2 | . . . . . . . . . . . . . . 2 Terminal Index 2 | . . . 1 . . . . . . . . . . 1 Alert Level 4 | . . . 2 . . . . . . . . . . 2 Unreport Threat 5 | . . . 1 . . . . . . . . . . 4 Locate Traps 2 | . . . 1 . . . . . . . . . . 1 Patrol Status 1 | . . . . . . . . . . . . . . 1 Zone Layout 3 | . . . 1 1 . . . . . . . . . 1 Derelict Proto ID Bank 1 | . . 1 . . . . . . . . . . . . Fabricator Hacks . | . . . . . . . . . . . . . . . Repair Station Hacks 5 | . . . 3 2 . . . . . . . . . . Scan Component 3 | . . . 2 1 . . . . . . . . . . Repair 2 | . . . 1 1 . . . . . . . . . . Recycling Unit Hacks . | . . . . . . . . . . . . . . . Scanalyzer 2 | . . . 2 . . . . . . . . . . . Insert Component 1 | . . . 1 . . . . . . . . . . . Analyze 1 | . . . 1 . . . . . . . . . . . Garrison Access Hacks 1 | . . . . 1 . . . . . . . . . . Seal Access 1 | . . . . 1 . . . . . . . . . . Unauthorized Hacks 23 | . 1 . 7 8 . . . . . . 6 . . 1 Terminals 21 | . 1 . 7 6 . . . . . . 6 . . 1 Assimilate 1 | . . . . 1 . . . . . . . . . . Botnet 4 | . . . 1 1 . . . . . . 1 . . 1 Operators 1 | . . . . 1 . . . . . . . . . . Skim 15 | . 1 . 6 3 . . . . . . 5 . . . Fabricators . | . . . . . . . . . . . . . . . Repair Stations . | . . . . . . . . . . . . . . . Recycling Units 2 | . . . . 2 . . . . . . . . . . Reject 1 | . . . . 1 . . . . . . . . . . Mask 1 | . . . . 1 . . . . . . . . . . Scanalyzers . | . . . . . . . . . . . . . . . Garrison Access . | . . . . . . . . . . . . . . . Data Cores Recovered 2 | . . . . 1 . . . . . . . . . 1 Used . | . . . . . . . . . . . . . . . Hacking Detections 34 | . 1 . 9 7 . . . . . . 8 . . 9 Full Trace Events 2 | . . . 1 . . . . . . . 1 . . . Feedback Events . | . . . . . . . . . . . . . . . Feedback Blocked . | . . . . . . . . . . . . . . . Robot Schematics Acquired 3 | . . . . . . . 3 . . . . . . . Robots Built . | . . . . . . . . . . . . . . . Authchips . | . . . . . . . . . . . . . . . Time . | . . . . . . . . . . . . . . . Total Robot Build Rating . | . . . . . . . . . . . . . . . Part Schematics Acquired 18 | . . . 1 . . . 16 . . . 1 . . . Parts Built . | . . . . . . . . . . . . . . . Authchips . | . . . . . . . . . . . . . . . Time . | . . . . . . . . . . . . . . . Total Part Build Rating . | . . . . . . . . . . . . . . . Parts Repaired 2 | . . . 1 1 . . . . . . . . . . Time 105 | . . . 61 44 . . . . . . . . . . Parts Recycled . | . . . . . . . . . . . . . . . Recycled Matter . | . . . . . . . . . . . . . . . Retrieved Matter . | . . . . . . . . . . . . . . . Retrieved Components . | . . . . . . . . . . . . . . . Parts Scanalyzed 1 | . . . 1 . . . . . . . . . . . Part Schematics Acquired 1 | . . . 1 . . . . . . . . . . . Parts Damaged . | . . . . . . . . . . . . . . . Bothacking | -11 -10 -10 -8 -7 -7 -7 -7 -7 -6 -6 -6 -6 -6 -6 ------------ Run | Yrd Mat Sub Mat Fac Low Low Zio Dee Pro Fac Ext Cet Arc Hub Used RIF Installer . | . . . . . . . . . . . . . . . Robots Hacked . | . . . . . . . . . . . . . . . Non-combat . | . . . . . . . . . . . . . . . Combat . | . . . . . . . . . . . . . . . Robot Hacks Applied . | . . . . . . . . . . . . . . . Relay Couplers Released 3 | . . . 2 . . . . . . . . . . 1 Machine Destruction 3 | . . . 2 . . . . . . . . . . 1 Fabnet Peak Effective % . | . . . . . . . . . . . . . . . Robots Rewired 22 | . . . . . 5 . . . . . 17 . . . Allies Hacked . | . . . . . . . . . . . . . . . Hacks Repelled . | . . . . . . . . . . . . . . . Allies | -11 -10 -10 -8 -7 -7 -7 -7 -7 -6 -6 -6 -6 -6 -6 -------- Run | Yrd Mat Sub Mat Fac Low Low Zio Dee Pro Fac Ext Cet Arc Hub Total Allies 34 | . . . . . 5 . 5 . . . 19 5 . . Largest Group 10 | . . . . . 5 5 10 10 . . 9 9 7 6 Highest-Rated Group 687 | . . . . . 100 100 246 246 . . 356 687 652 509 Highest-Rated Ally 159 | . . . . . 20 20 31 31 . . 159 149 143 96 Total Orders 26 | . . . . . 2 2 . 13 . . . 4 2 3 STAY 15 | . . . . . 1 1 . 9 . . . 1 1 2 FOLLOW 11 | . . . . . 1 1 . 4 . . . 3 1 1 Ally Attacks 340 | . . . . . 6 5 . 70 . . 83 47 3 126 Total Damage 10580 | . . . . . 98 186 . 1011 . . 2697 1478 47 5063 Kills 68 | . . . . . 3 3 . 12 . . 15 10 1 24 Allies Corrupted . | . . . . . . . . . . . . . . . Allies Melted . | . . . . . . . . . . . . . . . Intel | -11 -10 -10 -8 -7 -7 -7 -7 -7 -6 -6 -6 -6 -6 -6 ------- Run | Yrd Mat Sub Mat Fac Low Low Zio Dee Pro Fac Ext Cet Arc Hub Robot Analysis Total 4 | . . . 3 . . . . . . . . . . 1 Derelict Logs Recovered 7 | . . 2 . . 1 1 2 . 1 . . . . . Drone Launches . | . . . . . . . . . . . . . . . Drone Recoveries . | . . . . . . . . . . . . . . . Exploration | -11 -10 -10 -8 -7 -7 -7 -7 -7 -6 -6 -6 -6 -6 -6 ------------- Run | Yrd Mat Sub Mat Fac Low Low Zio Dee Pro Fac Ext Cet Arc Hub Turns Passed 31872 | 195 445 1772 2518 1958 1138 973 2239 6924 1174 802 2005 531 5680 3518 Spaces Moved 10975 | 103 145 797 956 984 531 471 1147 2979 450 247 644 199 198 1124 Core 135 | 10 . . . . . . . . . . . . 125 . Treads 1028 | 93 145 559 153 . . . . . . . . . . 78 Legs 4022 | . . . . . . . . 1363 450 247 644 199 73 1046 Wheels 5790 | . . 238 803 984 531 471 1147 1616 . . . . . . Hover . | . . . . . . . . . . . . . . . Flight . | . . . . . . . . . . . . . . . Fastest Speed 50 | 50 160 120 95 130 190 190 190 115 240 240 240 240 240 240 Average Speed 245 | 149 160 193 187 164 190 190 190 195 240 240 240 240 2614 246 Slowest Speed 4000 | 160 160 260 480 190 190 190 190 242 240 240 240 240 4000 360 Overloaded Moves . | . . . . . . . . . . . . . . . Propulsion Burnouts . | . . . . . . . . . . . . . . . Robots Hopped . | . . . . . . . . . . . . . . . Cave-ins Triggered . | . . . . . . . . . . . . . . . Exploration Rate (%) 55 | 3 23 26 70 34 57 67 86 89 68 9 87 64 54 92 Regions Visited 14 Branch Regions 10 Pre-discovered Areas 3 | . . 1 . . 1 . . . . . 1 . . . Known Exits Taken 5 | . . . . 1 . . . . 1 1 1 . 1 . Unknown Exits Taken 9 | 1 1 1 1 . 1 1 1 1 . . . 1 . . Scrap Searched 28 | . . 9 . . 4 10 2 . 3 . . . . . Spaces Dug 78 | . . . . 5 2 4 . 5 20 15 . . 3 24 Terrain Destroyed 739 | . . 5 48 32 35 10 . 41 95 26 19 2 8 418 Melee 1 | . . . . 1 . . . . . . . . . . Projectile 222 | . . 5 27 16 4 10 . 25 19 26 19 2 8 61 AOE 516 | . . . 21 15 31 . . 16 76 . . . . 357 Terrain Rammed . | . . . . . . . . . . . . . . . Walls Destroyed . | . . . . . . . . . . . . . . . Machines Disabled . | . . . . . . . . . . . . . . . Actions | -11 -10 -10 -8 -7 -7 -7 -7 -7 -6 -6 -6 -6 -6 -6 --------- Run | Yrd Mat Sub Mat Fac Low Low Zio Dee Pro Fac Ext Cet Arc Hub Total 14569 | 133 282 931 1396 1177 610 521 1202 3911 493 387 1019 240 670 1597 Wait 1731 | . 87 29 119 32 4 22 20 616 2 102 32 8 438 220 Move 10961 | 102 144 796 955 983 530 470 1146 2978 449 246 643 198 197 1124 Hop . | . . . . . . . . . . . . . . . Pick Up 210 | 12 5 11 60 18 3 2 8 56 1 3 4 7 3 17 Fast Attach 92 | . . 2 17 15 1 4 3 32 . . 8 3 2 5 Attach 54 | 8 2 2 12 3 . . 2 12 2 1 . . 1 9 Detach 18 | 1 . . 3 2 . . . 2 2 . 1 1 . 6 Swap 105 | 2 5 15 24 14 4 1 8 9 1 . 3 2 . 17 Drop 286 | 1 1 15 54 29 4 7 11 97 1 . 17 12 10 27 Fire 772 | 7 36 41 142 79 28 15 4 109 35 35 44 9 19 169 Melee 21 | . . 20 . 1 . . . . . . . . . . Ram 3 | . . . 3 . . . . . . . . . . . Kick 3 | . . . . . . . . . . . 2 . . 1 Crush 11 | . 2 . 7 . . . . . . . . . . 2 Escape Stasis 25 | . . . . . . . . . . . 25 . . . Rewire 276 | . . . . . 36 . . . . . 240 . . . Trap . | . . . . . . . . . . . . . . . Miscellaneous 1 | . . . . 1 . . . . . . . . . . Route ------- -11/Scrapyard -10/Materials -10/Subcaves (discovered 2 exits: *Mat x2) -8/Materials -7/Factory (discovered 4 exits: *Fac / Sto / *Low x2) -7/Lower Caves -7/Lower Caves -7/Zion (discovered 2 exits: [*Dee] / *Pro) -7/Deep Caves -6/Proximity Caves -6/Factory (discovered 3 exits: Low / *Ext x2) -6/Extension (discovered 3 exits: *Fac x2 / *Cet) -6/Cetus (discovered 2 exits: *Fac / [*Arc]) -6/Archives (discovered 2 exits: *Hub x2) -6/Hub_04(d) (discovered 4 exits: *Fac x4) History --------- Turn | Location | Event 14 | -11/Scrapyard | Discovered new exit (range 15) 196 | -11/Scrapyard | Entered Materials 317 | -10/Materials | Build established: Mutant 618 | -10/Materials | Discovered new exit (range 2) 641 | -10/Materials | Entered Subcaves 855 | -10/Subcaves | Disturbed a concealed Subdweller 1159 | -10/Subcaves | Learned location of Storage (-7) 1191 | -10/Subcaves | Visited 4L-MR0's lab 1220 | -10/Subcaves | Found Meta Core 1388 | -10/Subcaves | Shifting Twisted Machinery released Sub. Optics 1588 | -10/Subcaves | Shifting Twisted Machinery released Ripper 1593 | -10/Subcaves | Discovered new exit (range 9) 1811 | -10/Subcaves | Build established: Scavenger-Mutant 1880 | -10/Subcaves | Discovered new exit (range 15) 1939 | -10/Subcaves | A swath of the cavern ceiling suddenly collapsed 2189 | -10/Subcaves | Shifting Twisted Machinery released Sub. Monowheel 2326 | -10/Subcaves | Shifting Twisted Machinery released Sub. Monowheel 2373 | -10/Subcaves | Build established: Mutant 2413 | -10/Subcaves | Entered Materials 2413 | -8/Materials | Evolved 4 slots: Propulsion x2, Utility x2 2726 | -8/Materials | Build established: Hauler-Mutant 4261 | -8/Materials | Discovered new exit (range 7) 4374 | -8/Materials | Repaired Broken Imp. Deuterium Engine? 4675 | -8/Materials | Destroyed 8 combat bots 4931 | -8/Materials | Entered Factory 4931 | -7/Factory | Evolved 2 slots: Power x1, Utility x1 4932 | -7/Factory | Identified exit to Storage 5002 | -7/Factory | Repaired Imp. Deuterium Engine 5167 | -7/Factory | Identified exit to Lower Caves 6356 | -7/Factory | Discovered new exit (range 11) 6889 | -7/Factory | Entered Lower Caves 7109 | -7/Lower Caves | Learned location of Extension (-6) 7433 | -7/Lower Caves | Attacked by a delusional Derelict stockpiling Unaware 7580 | -7/Lower Caves | Attracted the attention of an 0b10 outpost 7929 | -7/Lower Caves | Discovered new exit (range 5) 8027 | -7/Lower Caves | Entered another Lower Caves area 8027 | -7/Lower Caves | Accompanied by 5 allies 8027 | -7/Lower Caves | Spotted B-75 Beast 8035 | -7/Lower Caves | Allies destroyed B-75 Beast 8959 | -7/Lower Caves | Discovered new exit (range 12) 9000 | -7/Lower Caves | Entered Zion 9000 | -7/Zion | Accompanied by 5 allies 9088 | -7/Zion | System corruption reached 10% 9097 | -7/Zion | System corruption cleaned by Quarantine Array 9316 | -7/Zion | Identified exit to Proximity Caves 9533 | -7/Zion | Met Imprinter 9620 | -7/Zion | Learned location of 2 exits from Factory 9827 | -7/Zion | Gained Derelict followers 9921 | -7/Zion | Found CR-A16's Pointy Stick 10185 | -7/Zion | Found Prototype Processor 10185 | -7/Zion | Identified Exp. Targeting Computer 10189 | -7/Zion | Found Prototype Processor 10189 | -7/Zion | Identified Exp. Target Analyzer 10193 | -7/Zion | Found Prototype Processor 10193 | -7/Zion | Identified Exp. Armor Integrity Analyzer 10444 | -7/Zion | Received a visual enhancement algorithm 11207 | -7/Zion | Discovered new exit (range 4) 11207 | -7/Zion | Saw the warning signs outside the Deep Caves entrance 11239 | -7/Zion | Entered Deep Caves 11239 | -7/Deep Caves | Accompanied by 10 allies 11965 | -7/Deep Caves | Z-Facility disabled 12017 | -7/Deep Caves | Attacked by Z-Imprinter 12041 | -7/Deep Caves | Allies destroyed Z-Imprinter 12163 | -7/Deep Caves | Found Prototype Protection 12163 | -7/Deep Caves | Identified Zio. Weapon Casing 12178 | -7/Deep Caves | Found Prototype Device 12178 | -7/Deep Caves | Identified Zio. Metafield Generator 12365 | -7/Deep Caves | Lost 4 allies 13243 | -7/Deep Caves | Discovered new exit (range 6) 13767 | -7/Deep Caves | Found Zio. Weapon Casing 13775 | -7/Deep Caves | Found Zio. Weapon Casing 14000 | -7/Deep Caves | Found Prototype Protection 14000 | -7/Deep Caves | Identified Zio. Heavy Carapace 14009 | -7/Deep Caves | Found Zio. Heavy Carapace 14149 | -7/Deep Caves | Spotted AG-57941 14173 | -7/Deep Caves | Build established: Scavenger-Mutant 14177 | -7/Deep Caves | Core integrity fell below 50% 14179 | -7/Deep Caves | Destroyed AG-57941 14203 | -7/Deep Caves | Found GOLEM Unit 14474 | -7/Deep Caves | Spotted AG-34702 14512 | -7/Deep Caves | Destroyed AG-34702 14520 | -7/Deep Caves | Found GOLEM Unit 15030 | -7/Deep Caves | Found Zio. Weapon Casing 15077 | -7/Deep Caves | Found Zio. Heavy Carapace 15350 | -7/Deep Caves | Triggered Deep Caves wall 15350 | -7/Deep Caves | Spotted AS-64936 15351 | -7/Deep Caves | Destroyed AS-64936 15357 | -7/Deep Caves | Exposed GOLEM chamber 15366 | -7/Deep Caves | Spotted AS-69926 15371 | -7/Deep Caves | Destroyed AS-69926 15395 | -7/Deep Caves | Destroyed 36 combat bots 15435 | -7/Deep Caves | Found GOLEM Unit 15736 | -7/Deep Caves | Build established: Scavenger-Golem 16077 | -7/Deep Caves | Build established: Hauler-Mutant 16160 | -7/Deep Caves | Found Zio. Weapon Casing 16510 | -7/Deep Caves | Found Mobile Assembly Unit 16525 | -7/Deep Caves | Found GOLEM Unit 16531 | -7/Deep Caves | Found GOLEM Unit 16541 | -7/Deep Caves | Found GOLEM Unit 16570 | -7/Deep Caves | Found GOLEM Unit 18163 | -7/Deep Caves | Entered Proximity Caves 19031 | -6/Proximity Caves | Identified exit to Factory 19337 | -6/Proximity Caves | Entered Factory 19337 | -6/Factory | Evolved 2 slots: Utility x2 19338 | -6/Factory | Identified exit to Extension 19339 | -6/Factory | Identified exit to Lower Caves 19643 | -6/Factory | Build established: Hauler-Golem 20139 | -6/Factory | Entered Extension 20588 | -6/Extension | Rescued A7 21309 | -6/Extension | Spotted B-75 Beast 21323 | -6/Extension | Destroyed B-75 Beast 21338 | -6/Extension | Spotted B-75 Beast 21343 | -6/Extension | Destroyed B-75 Beast 21385 | -6/Extension | Lost 4 allies 21471 | -6/Extension | Energy Cycler disabled 21472 | -6/Extension | Rescued a captive Derelict 21472 | -6/Extension | Rescued a captive Derelict 21474 | -6/Extension | Rescued a captive Derelict 21478 | -6/Extension | Rescued a captive Derelict 21715 | -6/Extension | Lost 3 allies 21987 | -6/Extension | Learned location of 2 exits from Archives 22032 | -6/Extension | Identified exit to Cetus 22032 | -6/Extension | Identified exit to Factory 22065 | -6/Extension | Learned 2 Proximity Caves zone layouts 22098 | -6/Extension | Disrupted transfer network 22103 | -6/Extension | Learned location of 1 exit from Proximity Caves 22108 | -6/Extension | Learned 2 Proximity Caves zone layouts 22109 | -6/Extension | Learned Factory fabricator intel 22135 | -6/Extension | Learned location of Proximity Caves (-5) 22141 | -6/Extension | Build established: Commander-Golem 22144 | -6/Extension | Entered Cetus 22144 | -6/Cetus | Accompanied by 9 allies (A7) 22149 | -6/Cetus | Acquired a Cetus Manufacturing Module code from A7 22176 | -6/Cetus | Spotted Cetus Guard 22176 | -6/Cetus | Spotted Cetus Guard 22181 | -6/Cetus | Spotted Cetus Guard 22183 | -6/Cetus | Spotted Cetus Guard 22194 | -6/Cetus | Allies destroyed Cetus Guard 22195 | -6/Cetus | Allies destroyed Cetus Guard 22198 | -6/Cetus | Destroyed Cetus Guard 22206 | -6/Cetus | Allies destroyed Cetus Guard 22237 | -6/Cetus | Lost 3 allies 22422 | -6/Cetus | Started Cetus Manufacturing Module 22441 | -6/Cetus | Escorted A7 to Cetus Mainframe 22447 | -6/Cetus | Manufactured an Enhanced Grunt 22466 | -6/Cetus | Discovered new exit (range 15) 22472 | -6/Cetus | Manufactured an Enhanced Grunt 22497 | -6/Cetus | Manufactured an Enhanced Grunt 22512 | -6/Cetus | Spotted Cetus Guard 22512 | -6/Cetus | Spotted Cetus Guard 22514 | -6/Cetus | Spotted Cetus Guard 22514 | -6/Cetus | Spotted Cetus Guard 22516 | -6/Cetus | Destroyed Cetus Guard 22522 | -6/Cetus | Manufactured an Enhanced Grunt 22527 | -6/Cetus | Allies destroyed Cetus Guard 22529 | -6/Cetus | Allies destroyed Cetus Guard 22531 | -6/Cetus | Destroyed Cetus Guard 22544 | -6/Cetus | Discovered exit to Factory (range 15) 22547 | -6/Cetus | Manufactured an Enhanced Grunt 22559 | -6/Cetus | Met Revision 17 22675 | -6/Cetus | Entered Archives 22675 | -6/Archives | Accompanied by 7 allies (A7) 22676 | -6/Archives | Identified exit to Hub_04(d) 22680 | -6/Archives | Received a hacking code to weaken MAIN.C 22680 | -6/Archives | Murdered A7 22681 | -6/Archives | Extracted ID and sensor layout for unrecognized location from A7's data core 22964 | -6/Archives | Build established: Hauler-Golem 28302 | -6/Archives | Met Zhirov 28308 | -6/Archives | Reinforcements dispatched to Archives 28353 | -6/Archives | Reinforcements dispatched to Archives 28355 | -6/Archives | Entered Hub_04(d) 28355 | -6/Hub_04(d) | Accompanied by 6 allies 29546 | -6/Hub_04(d) | Spotted B-75 Beast 29569 | -6/Hub_04(d) | Allies destroyed B-75 Beast 29755 | -6/Hub_04(d) | First assault squad dispatched 29770 | -6/Hub_04(d) | Lost 4 allies 30228 | -6/Hub_04(d) | Build established: Hacker-Golem 30616 | -6/Hub_04(d) | Build established: Hauler-Golem 30705 | -6/Hub_04(d) | Network Hub disabled 30782 | -6/Hub_04(d) | Network Hub disabled 30951 | -6/Hub_04(d) | Spotted Lightning 30952 | -6/Hub_04(d) | Spotted Lightning 30953 | -6/Hub_04(d) | Spotted Lightning 30963 | -6/Hub_04(d) | System corruption reached 10% 30982 | -6/Hub_04(d) | Destroyed Lightning 31006 | -6/Hub_04(d) | Destroyed Lightning 31030 | -6/Hub_04(d) | Destroyed Lightning 31042 | -6/Hub_04(d) | Found Prototype Energy Cannon 31045 | -6/Hub_04(d) | Found Prototype Device 31046 | -6/Hub_04(d) | Identified Exp. EM Disruption Field 31292 | -6/Hub_04(d) | Found Exp. EM Disruption Field 31345 | -6/Hub_04(d) | Network Hub disabled 31514 | -6/Hub_04(d) | Spotted Lightning 31526 | -6/Hub_04(d) | Spotted Lightning 31528 | -6/Hub_04(d) | Spotted Lightning 31549 | -6/Hub_04(d) | Destroyed Lightning 31568 | -6/Hub_04(d) | System corruption reached 30% 31597 | -6/Hub_04(d) | Destroyed Lightning 31603 | -6/Hub_04(d) | High security lockdown imminent 31603 | -6/Hub_04(d) | Destroyed Lightning 31613 | -6/Hub_04(d) | Identified EMDS 31622 | -6/Hub_04(d) | Found EMDS 31646 | -6/Hub_04(d) | Found Prototype Device 31646 | -6/Hub_04(d) | Identified Exp. Phase Shifter 31680 | -6/Hub_04(d) | Found Exp. EM Disruption Field 31683 | -6/Hub_04(d) | High security lockdown engaged 31689 | -6/Hub_04(d) | Network Hub disabled 31757 | -6/Hub_04(d) | Core integrity fell below 50% 31823 | -6/Hub_04(d) | Destroyed 14 combat bots 31846 | -6/Hub_04(d) | Core integrity fell below 20% 31873 | -6/Hub_04(d) | Destroyed by H-66 Slayer with Heavy Assault Rifle Last Messages --------------- 31839_ G-50 Soldier unfolds itself. 31839_ Exp. Phase Shifter blown off. 31839_ E-15 Imp destroyed. 31840_ MXBD &WC2 31841_ Penetrated by Slug. 31841_ Zio. Biocell destroyed. 31841_ Control Node disabled. 31841_ Penetrated by Slug. 31844_ Slug penetrates Control Node. 31845_ M-28 Smith repairs H-66 Slayer. 31847_ Slug penetrates Wall. 31861_ System corrupted: Centrium Heavy Treads rejected. 31862_ Acquired Centrium Heavy Treads. 31867_ Slug penetrates Wall. 31871_ Penetrated by Slug. 31871_ GOLEM Unit destroyed. 31873_ Penetrated by Slug. Map ----- +----------------------------------------------------+ | " " " "# [ # # "" #?# ! # # | | "=" T# "T" =# # "T #?######## # | | #######=%! " "# """ # # "" #????????# +" | | ""##" !% " "########### # "" [ #????????# #% | | ![%[%= " "#??# # #????????# #" | | *=%=[=" #??# + #?????#### # | | =%=% #####??# # """" #?????# ! | | %% = #????######+###+# """" ####### # | | |=####?????# ! + """" # * % | | *% ##?????# T # """" # """ % | | *[*! ##?????# !! # # %= | | !!=% ###??????# ! "####### """=# | | [[%=%"##+######???# " "%"??????# = % | | ==!+!! % =* #???# "??????# #*] ! | | #%##! #???# """ """ #??????# %[ | | # ## % #???# #??????# [ # | | #### %! #???#######+###??????# [ # | | ???# = #?????????# #????############ | | #### #?######### #????# !%/! | | + #?# =* # #????# " = # # | | #### < #?#% """" # #????# # # | | ??## #?#/!"""" # ###### % # # | | ??## #?#%!"""" # # ###+########/## # | | ???# %% ###*!"""" # # h %*% ## | | ???# = # # # # ############= | | ##?# ##" """ #@l ##???######## ## | | #?# + / # p ###### ] ] + ## | | #?# ### # h / #####+### | | #?######+####### # p ### """" ##! | | ###### #???## #^ " #?# """" ## """ | | + #????# "" # " #?# """" ## ! | | + #????# """ # " #?# """" ## """ | | ###### [#????# """" # ########### | | #######+######## """" + ! + """ | | ## [%! !+ ####+#####+##+###?# | | ## "" = "" # [[# *## ""T"" | | ## "" "" # [ + ## """"" | | ### """" """" # # ######### | | ??# """" """" !# # #???????? | | ??# !# # #???????? | | ??########################################???????? | | | | | | | | | | | | | | | | | | | +----------------------------------------------------+ Best States ------------- Heat Dissipation 61 Energy Generation 45 Energy Capacity 1700 Matter Stores 300 Matter Capacity 300 Sight Range 16 Terrain Scan Range 16 Terrain Scan Density 10 EM Shielding 2 Armor Coverage 1200 Resistance: KI 30 Resistance: EM 75 Core Shielding 20 Weapon Shielding 100 Phase Shifting 15 Evasion (%) 55 Target Analysis 10 Core Analysis 6 Recoil Reduction 4 Offensive Hacking 23 Defensive Hacking 12 Item Schematics ----------------- Multitool | -8/Materials | Scanalyzed Lightning Gun | -7/Zion | Archive Energy Well | -7/Zion | Archive Xenon Bombardment Thruster | -7/Zion | Archive EM Disruption Field | -7/Zion | Archive Imp. Deuterium Engine | -7/Zion | Archive Power Sword | -7/Zion | Archive Flak Gun | -7/Zion | Archive Imp. Shock Absorption System | -7/Zion | Archive Imp. Transmission Jammer | -7/Zion | Archive Kinecellerator | -7/Zion | Archive Adv. Heat Sink | -7/Zion | Archive Plasma Cannon | -7/Zion | Archive Phase Shifter | -7/Zion | Archive Power Amplifier | -7/Zion | Archive Imp. Titanium Leg | -7/Zion | Archive Hvy. Mass Driver | -7/Zion | Archive Huge Storage Unit | -6/Extension | Hacked Robot Schematics ------------------ L-41 Fighter | -7/Zion | Archive B-48 Gladiator | -7/Zion | Archive L-31 Rogue | -7/Zion | Archive Fabricated ------------ Nothing Alien Tech Used ----------------- None Achievements -------------- None Challenges ------------ None Game ------ Seed StasisRiotPurifier Manual? 0 Play Time 03:11:08 Cumulative 369.9 hours Start 2024.10.09 @ 12:29:54 End 2024.10.10 @ 14:41:38 Sessions 7 Manual Loads 0 Difficulty Rogue Special Mode None Game No. 263 Rogue 258 Adventurer 5 Explorer 0 Win Type - Total 9 Types 4/0/5/0/0/0/0/0/0 Lore% 71 Gallery% 86 Achievement% 71 Wizard Run 0 Options --------- Layout 2 ASCII 0 Keyboard 0 Movement Mouse Keybinds 0 Fullscreen 2 Font 24/Smallcaps Map View 50x44 Zoom Use 0% Tactical HUD 1 Map Filters NONE Filters NONE Steam 1 RUN: 1dd6c53f-fa26-4828-9cf0-18c3ac426768